lending/lending_fUSD_20240621
["ID","MTS","AMOUNT","RATE_DAILY","PERIOD"]
[330080666,1718989426869,-559.84,0.00022191,4]
[330080667,1718989426911,-500.0,0.00022191,4]
[330080668,1718989426952,-500.0,0.00022454,4]
[330080669,1718989426992,-500.0,0.00022454,4]
[330080670,1718989427035,-500.0,0.00022454,4]
[330080671,1718989427078,-500.0,0.00022454,4]
[330080672,1718989427120,-1073.61,0.00022454,4]
[330080673,1718989427162,-500.0,0.00022454,4]
[330080674,1718989427202,-1028.37,0.00022454,4]
[330080675,1718989427244,-7018.38,0.00022454,4]
[330080676,1718989427287,-565.65,0.00022454,4]
[330080677,1718989427330,-1694.42,0.00022454,4]
[330080678,1718989427370,-500.0,0.00022454,4]
[330080679,1718989427414,-6329.47,0.00022454,4]
[330080680,1718989427469,-538.43,0.00022454,4]
[330080681,1718989427511,-497.7707291,0.00022454,4]
[330080682,1718989427551,-3123.88,0.00022454,4]
[330080683,1718989427598,-500.0,0.00022454,4]
[330080684,1718989427644,-1124.0,0.00022454,4]
[330080685,1718989427694,-1310.65,0.00022454,4]
[330080686,1718989427743,-500.0,0.00022454,4]
[330080687,1718989427803,-254.68999583,0.00022464,4]
[330080688,1718989427846,-3990.63,0.00022464,4]
[330080689,1718989427889,-500.0,0.00022464,4]
[330080690,1718989427931,-6768.76,0.00022464,4]
[330080691,1718989427973,-500.0,0.00022464,4]
[330080692,1718989428014,-831.31,0.00022464,4]
[330080693,1718989428063,-7553.04,0.00022464,4]
[330080694,1718989428111,-1274.46,0.00022464,4]
[330080695,1718989428151,-500.0,0.00022465,4]
[330080696,1718989428191,-500.0,0.00022465,4]
[330080697,1718989428232,-500.0,0.00022465,4]
[330080698,1718989428272,-500.0,0.00022465,4]
[330080699,1718989428314,-1466.84,0.00022465,4]
[330080700,1718989428352,-500.0,0.00022465,4]
[330080701,1718989428392,-500.0,0.00022465,4]
[330080702,1718989428434,-505.50284154,0.00022465,4]
[330080703,1718989428475,-500.0,0.00022465,4]
[330080704,1718989428517,-585.36,0.00022465,4]
[330080705,1718989428559,-509.69,0.00022465,4]
[330080706,1718989428601,-667.28,0.00022465,4]
[330080707,1718989428643,-500.0,0.00022465,4]
[330080708,1718989428685,-4516.86,0.00022465,4]
[330080709,1718989428734,-500.0,0.00022465,4]
[330080710,1718989428779,-500.0,0.00022465,4]
[330080711,1718989428823,-19547.2,0.00022465,4]
[330080712,1718989428885,-500.0,0.00022465,4]
[330080713,1718989428930,-2179.3,0.00022465,4]
[330080714,1718989429008,-858.28,0.00022465,4]
[330080715,1718989429071,-906.35,0.00022465,4]
[330080716,1718989429113,-500.0,0.00022465,4]
[330080717,1718989429155,-1794.24,0.00022465,4]
[330080718,1718989429199,-500.0,0.00022465,4]
[330080719,1718989429249,-6153.32,0.00022465,4]
[330080720,1718989429298,-500.0,0.00022465,4]
[330080721,1718989429347,-559.84,0.00022465,4]
[330080722,1718989429398,-500.0,0.00022465,4]
[330080723,1718989429440,-985.19789627,0.0002253,2]
[330080724,1718989429482,-500.0,0.00022728,4]
[330080725,1718989429524,-500.0,0.00022728,4]
[330080726,1718989429566,-500.0,0.00022728,4]
[330080727,1718989429610,-500.0,0.00022728,4]
[330080728,1718989429652,-1073.61,0.00022728,4]
[330080729,1718989429695,-500.0,0.00022728,4]
[330080730,1718989429959,-1028.37,0.00022728,4]
[330080731,1718989430006,-7018.38,0.00022728,4]
[330080732,1718989430048,-565.65,0.00022728,4]
[330080733,1718989430090,-1694.42,0.00022728,4]
[330080734,1718989430130,-500.0,0.00022728,4]
[330080735,1718989430170,-6329.47,0.00022728,4]
[330080736,1718989430209,-538.43,0.00022728,4]
[330080737,1718989430250,-3123.88,0.00022728,4]
[330080738,1718989430292,-500.0,0.00022728,4]
[330080739,1718989430342,-1124.0,0.00022728,4]
[330080740,1718989430382,-1310.65,0.00022728,4]
[330080741,1718989430424,-270.42504992,0.00022728,4]
[330080742,1718989430469,-3990.63,0.00022738,4]
[330080743,1718989430512,-500.0,0.00022738,4]
[330080744,1718989430553,-6768.76,0.00022738,4]
[330080745,1718989430594,-500.0,0.00022738,4]
[330080746,1718989430638,-831.31,0.00022738,4]
[330080747,1718989430681,-7553.04,0.00022738,4]
[330080748,1718989430724,-1274.46,0.00022738,4]
[330080749,1718989430763,-500.0,0.00022739,4]
[330080750,1718989430804,-500.0,0.00022739,4]
[330080751,1718989430845,-500.0,0.00022739,4]
[330080752,1718989430889,-500.0,0.00022739,4]
[330080753,1718989430930,-1466.84,0.00022739,4]
[330080754,1718989430976,-500.0,0.00022739,4]
[330080755,1718989431020,-500.0,0.00022739,4]
[330080756,1718989431065,-585.36,0.00022739,4]
[330080757,1718989431105,-509.69,0.00022739,4]
[330080758,1718989431146,-667.28,0.00022739,4]
[330080759,1718989431187,-500.0,0.00022739,4]
[330080760,1718989431227,-4516.86,0.00022739,4]
[330080761,1718989431269,-500.0,0.00022739,4]
[330080762,1718989431308,-500.0,0.00022739,4]
[330080763,1718989431351,-19547.2,0.00022739,4]
[330080764,1718989431390,-500.0,0.00022739,4]
[330080765,1718989431430,-2179.3,0.00022739,4]
[330080766,1718989431470,-858.28,0.00022739,4]
[330080767,1718989431511,-906.35,0.00022739,4]
[330080768,1718989431551,-500.0,0.00022739,4]
[330080769,1718989431589,-500.0,0.00022739,4]
[330080770,1718989431628,-1794.24,0.00022739,4]
[330080771,1718989431668,-6153.32,0.00022739,4]
[330080772,1718989431709,-500.0,0.00022739,4]
[330080773,1718989431749,-559.84,0.00022739,4]
[330080774,1718989431791,-500.0,0.00022739,4]
[330080775,1718989431844,-354.76117684,0.0002289,2]
[330080776,1718989431897,-944.94862747,0.0002289,2]
[330080777,1718989431948,-4594.1367,0.0002289,2]
[330080778,1718989431997,-500.0,0.0002289,2]
[330080779,1718989432038,-208.34508777,0.00022989,2]
[330080780,1718989432078,-595.0,0.0002299,2]
[330080781,1718989432119,-4652481.30189526,0.0002299,5]
[330080783,1718989693299,-151.23,0.0001956,2]
[330080784,1718989693344,-486.47709071,0.00019565,2]
[330080785,1718989693387,-486.47709071,0.00019593,2]
[330080786,1718989693436,-150.41,0.0001962,2]
[330080787,1718989693485,-486.47709071,0.0001962,2]
[330080788,1718989693539,-152.05,0.00019666,2]
[330080789,1718989693585,-153.69,0.0001972,2]
[330080790,1718989693628,-499.99,0.00019763,2]
[330080791,1718989693669,-1000.0,0.0002,2]
[330080792,1718989693711,-528.91,0.00020034,2]
[330080793,1718989693758,-170.37,0.00020739,2]
[330080794,1718989693811,-250.0,0.00020765,2]
[330080795,1718989693849,-23900.0,0.00020875,2]
[330080796,1718989693890,-297.17,0.0002107,2]
[330080797,1718989693928,-590.86,0.0002137,2]
[330080798,1718989693969,-250.0,0.00021586,2]
[330080799,1718989694010,-151.0,0.00021786,3]
[330080800,1718989694050,-500.0,0.00021917,4]
[330080801,1718989694089,-500.0,0.00021917,4]
[330080802,1718989694132,-2013.06,0.00021917,4]
[330080803,1718989694175,-500.0,0.00021917,4]
[330080804,1718989694217,-658.57,0.00021917,4]
[330080805,1718989694258,-500.0,0.00021917,4]
[330080806,1718989694310,-500.0,0.00021917,4]
[330080807,1718989694355,-1415.8,0.00021917,4]
[330080808,1718989694398,-500.0,0.00021917,4]
[330080809,1718989694442,-2301.5,0.00021917,4]
[330080810,1718989694484,-1930.31,0.00021917,4]
[330080811,1718989694538,-500.0,0.00021917,4]
[330080812,1718989694586,-1505.14,0.00021917,4]
[330080813,1718989694626,-500.0,0.00021917,4]
[330080814,1718989694666,-859.86,0.00021917,4]
[330080815,1718989694704,-2724.29,0.00021917,4]
[330080816,1718989694745,-500.0,0.00021917,4]
[330080817,1718989694788,-3259.1,0.00021917,4]
[330080818,1718989694826,-642.24,0.00021917,4]
[330080819,1718989694928,-1397.1,0.00021917,4]
[330080820,1718989694968,-500.0,0.00021917,4]
[330080821,1718989695007,-602.59,0.00021917,4]
[330080822,1718989695056,-762.85,0.00021917,4]
[330080823,1718989695094,-16821.22,0.00021917,4]
[330080824,1718989695130,-5682.94,0.00021917,4]
[330080825,1718989695166,-500.0,0.00021917,4]
[330080826,1718989695203,-570.91,0.00021917,4]
[330080827,1718989695241,-500.0,0.00021917,4]
[330080828,1718989695289,-3798.27,0.00021917,4]
[330080829,1718989695326,-669.19,0.00021917,4]
[330080830,1718989695363,-500.0,0.00021917,4]
[330080831,1718989695400,-1901.91,0.00021917,4]
[330080832,1718989695438,-1273.57,0.00021917,4]
[330080833,1718989695474,-1016.47,0.00021917,4]
[330080834,1718989695509,-500.0,0.00021917,4]
[330080835,1718989695554,-500.0,0.00021917,4]
[330080836,1718989695590,-6335.68,0.00021917,4]
[330080837,1718989695627,-500.0,0.00021917,4]
[330080838,1718989695662,-5403.44,0.00021917,4]
[330080839,1718989695696,-500.0,0.00021917,4]
[330080840,1718989695732,-500.0,0.00021917,4]
[330080841,1718989695768,-500.0,0.00021917,4]
[330080842,1718989695815,-6856.78,0.00021917,4]
[330080843,1718989695850,-500.0,0.00021917,4]
[330080844,1718989695890,-500.0,0.00021917,4]
[330080845,1718989695928,-963.28,0.00021917,4]
[330080846,1718989695964,-500.0,0.00021917,4]
[330080847,1718989696002,-532.82,0.00021917,4]
[330080848,1718989696046,-500.0,0.00021917,4]
[330080849,1718989696085,-2148.29,0.00021917,4]
[330080850,1718989696121,-529.60392439,0.00021917,4]
[330080851,1718989696160,-2896.96,0.00021917,4]
[330080852,1718989696197,-904.13,0.00021917,4]
[330080853,1718989696235,-500.0,0.00021917,4]
[330080854,1718989696283,-500.0,0.00021917,4]
[330080855,1718989696322,-1923.19,0.00021917,4]
[330080856,1718989696359,-1655.82,0.00021917,4]
[330080857,1718989696401,-500.0,0.00021917,4]
[330080858,1718989696438,-500.0,0.00021917,4]
[330080859,1718989696475,-590.93,0.00021917,4]
[330080860,1718989696511,-511.56,0.00021917,4]
[330080861,1718989696555,-500.0,0.00021917,4]
[330080862,1718989696593,-1612.01,0.00021917,4]
[330080863,1718989696630,-456.2165383,0.00021917,4]
[330080864,1718989696668,-500.0,0.00021917,4]
[330080865,1718989696707,-9657.0,0.00021917,4]
[330080866,1718989696746,-596.65,0.00021917,4]
[330080867,1718989696784,-500.0,0.00021917,4]
[330080868,1718989696821,-500.0,0.00021917,4]
[330080869,1718989696859,-2137.42,0.00021917,4]
[330080870,1718989696897,-500.0,0.00021917,4]
[330080871,1718989696938,-573.05,0.00021917,4]
[330080872,1718989696978,-500.0,0.00021917,4]
[330080873,1718989697019,-3053.94,0.00021917,4]
[330080874,1718989697089,-500.0,0.00021917,4]
[330080875,1718989697131,-657.01,0.00021917,4]
[330080876,1718989697173,-500.0,0.00021917,4]
[330080877,1718989697213,-500.0,0.00021917,4]
[330080878,1718989697254,-500.0,0.00021917,4]
[330080879,1718989697299,-639.37,0.00021917,4]
[330080880,1718989697336,-2666.89,0.00021917,4]
[330080881,1718989697373,-345.7223497,0.00021917,4]
[330080882,1718989697411,-2243.82,0.00021917,4]
[330080883,1718989697451,-500.0,0.00021917,4]
[330080884,1718989697496,-682.46,0.00021917,4]
[330080885,1718989697536,-1600.73,0.00021917,4]
[330080886,1718989697571,-500.0,0.00021917,4]
[330080887,1718989697606,-1512.5,0.00021917,4]
[330080888,1718989697643,-4050.67,0.00021917,4]
[330080889,1718989697680,-500.0,0.00021917,4]
[330080890,1718989697718,-696.06,0.00021917,4]
[330080891,1718989697755,-1542.7,0.00021917,4]
[330080892,1718989697793,-500.0,0.00021917,4]
[330080893,1718989697830,-1105.98,0.00021917,4]
[330080894,1718989697871,-1549.93,0.00021917,4]
[330080895,1718989697910,-833.57,0.00021917,4]
[330080896,1718989697948,-2659.75,0.00021917,4]
[330080897,1718989697987,-500.0,0.00021917,4]
[330080898,1718989698031,-500.0,0.00021917,4]
[330080899,1718989698070,-1158.3,0.00021917,4]
[330080900,1718989698112,-500.0,0.00021917,4]
[330080901,1718989698150,-533.64,0.00021917,4]
[330080902,1718989698190,-833.78,0.00021917,4]
[330080903,1718989698226,-500.0,0.00021917,4]
[330080904,1718989698266,-685.86,0.00021917,4]
[330080905,1718989698306,-500.0,0.00021917,4]
[330080906,1718989698342,-500.0,0.00021917,4]
[330080907,1718989698381,-500.0,0.00021917,4]
[330080908,1718989698419,-1289.2,0.00021917,4]
[330080909,1718989698455,-500.0,0.00021917,4]
[330080910,1718989698494,-1090.97,0.00021917,4]
[330080911,1718989698533,-599.47,0.00021917,4]
[330080912,1718989698573,-500.0,0.00021917,4]
[330080913,1718989698615,-591.52,0.00021917,4]
[330080914,1718989698657,-2819.08,0.00021917,4]
[330080915,1718989698699,-500.0,0.00021917,4]
[330080916,1718989698742,-7009.44,0.00021917,4]
[330080917,1718989698784,-1505.93,0.00021917,4]
[330080918,1718989698825,-824.93,0.00021917,4]
[330080919,1718989698867,-500.0,0.00021917,4]
[330080920,1718989698912,-500.0,0.00021917,4]
[330080921,1718989698956,-500.0,0.00021917,4]
[330080922,1718989699000,-3331.02,0.00021917,4]
[330080923,1718989699042,-1405.37,0.00021917,4]
[330080924,1718989699091,-5922.66,0.00021917,4]
[330080925,1718989699134,-500.0,0.00021917,4]
[330080926,1718989699178,-500.0,0.00021917,4]
[330080927,1718989699220,-905.75,0.00021917,4]
[330080928,1718989699262,-6608.91,0.00021917,4]
[330080929,1718989699307,-500.0,0.00021917,4]
[330080930,1718989699347,-580.05,0.00021917,4]
[330080931,1718989699387,-500.0,0.00021917,4]
[330080932,1718989699429,-500.0,0.00021917,4]
[330080933,1718989699468,-540.71,0.00021917,4]
[330080934,1718989699511,-500.0,0.00021917,4]
[330080935,1718989699554,-838.13,0.00021917,4]
[330080936,1718989699598,-251.23477389,0.00021917,4]
[330080937,1718989699640,-500.0,0.00021917,4]
[330080938,1718989699683,-535.25,0.00021917,4]
[330080939,1718989699861,-823.35,0.00021917,4]
[330080940,1718989699903,-887.04,0.00021917,4]
[330080941,1718989699945,-1378.35,0.00021917,4]
[330080942,1718989699986,-500.0,0.00021917,4]
[330080943,1718989700028,-500.0,0.00021917,4]
[330080944,1718989700079,-1812.66,0.00021917,4]
[330080945,1718989700120,-1256.45,0.00021917,4]
[330080946,1718989700160,-647.36,0.00021917,4]
[330080947,1718989700201,-772.11,0.00021917,4]
[330080948,1718989700247,-500.0,0.00021917,4]
[330080949,1718989700287,-1436.074029,0.00022,5]
[330080950,1718989700327,-1000.0,0.0002209,2]
[330080951,1718989700366,-1000.0,0.0002209,2]
[330080952,1718989700404,-169.42797268,0.00022091,2]
[330080953,1718989700443,-5000.0,0.00022163,2]
[330080954,1718989700481,-955.49830246,0.00022163,2]
[330080955,1718989700523,-269.20894973,0.00022163,2]
[330080956,1718989700563,-285.13970872,0.00022163,2]
[330080957,1718989700604,-499.40340335,0.00022163,2]
[330080958,1718989700647,-2198.0801445,0.00022163,2]
[330080959,1718989700688,-393.88540214,0.00022163,5]
[330080960,1718989700728,-158.21632429,0.00022163,2]
[330080961,1718989700772,-339.36468135,0.00022163,2]
[330080962,1718989700812,-187.89378223,0.00022163,2]
[330080963,1718989700854,-235.16032657,0.00022163,2]
[330080964,1718989700893,-491.4546726,0.00022163,2]
[330080965,1718989700934,-830.71890196,0.00022163,2]
[330080966,1718989700974,-1177.89403127,0.00022163,2]
[330080967,1718989701014,-339.10074979,0.00022163,2]
[330080968,1718989701059,-235.16032657,0.00022163,2]
[330080969,1718989701107,-378.479245,0.00022163,2]
[330080970,1718989701146,-3105.79028967,0.00022163,2]
[330080971,1718989701186,-526.28955324,0.00022163,2]
[330080972,1718989701224,-3963.22039009,0.00022163,2]
[330080973,1718989701263,-155.0,0.00022163,2]
[330080974,1718989701306,-95515.2196933,0.0002217,2]
[330080975,1718989701345,-1989.12,0.00022179,4]
[330080976,1718989701391,-378.479245,0.0002218,2]
[330080977,1718989701431,-437.90975551,0.0002218,2]
[330080978,1718989701471,-660.11977562,0.0002218,2]
[330080979,1718989701512,-1069.4164457,0.0002218,2]
[330080980,1718989701560,-163.56645458,0.0002218,2]
[330080981,1718989701598,-202.40067256,0.0002218,2]
[330080982,1718989701640,-158.80388924,0.0002218,2]
[330080983,1718989701682,-345.95893679,0.0002218,2]
[330080984,1718989701723,-155.0,0.0002218,2]
[330080985,1718989701763,-155.0,0.0002218,2]
[330080986,1718989701806,-473.46909233,0.0002218,2]
[330080987,1718989701846,-326.69444584,0.0002218,2]
[330080988,1718989701887,-287.92176092,0.0002218,2]
[330080989,1718989701928,-442.47162944,0.0002218,2]
[330080990,1718989701969,-158.80388924,0.0002218,2]
[330080991,1718989702012,-155.0,0.0002218,2]
[330080992,1718989702060,-437.90975551,0.0002218,2]
[330080993,1718989702102,-529.48316259,0.0002218,2]
[330080994,1718989702142,-10000.0,0.0002218,2]
[330080995,1718989702182,-1382.38375711,0.0002218,2]
[330080996,1718989702223,-287.53794841,0.0002218,2]
[330080997,1718989702262,-366.0285791,0.0002218,2]
[330080998,1718989702304,-196.12854204,0.0002218,2]
[330080999,1718989702341,-482.76727412,0.0002218,2]
[330081000,1718989702378,-271.48274314,0.0002218,2]
[330081001,1718989702416,-304.26787148,0.0002218,2]
[330081002,1718989702454,-163.5767579,0.0002218,2]
[330081003,1718989702490,-217.79404424,0.0002218,2]
[330081004,1718989702529,-10000.0,0.0002218,2]
[330081005,1718989702566,-155.0,0.0002218,2]
[330081006,1718989702605,-1133.53475068,0.0002218,2]
[330081007,1718989702644,-269.44071926,0.0002218,2]
[330081008,1718989702682,-366.0285791,0.0002218,2]
[330081009,1718989702721,-1262.77288771,0.0002218,2]
[330081010,1718989702760,-2827.40811708,0.0002218,2]
[330081011,1718989702800,-196.12854204,0.0002218,2]
[330081012,1718989702837,-482.76727412,0.0002218,2]
[330081013,1718989702873,-500.0,0.0002218,4]
[330081014,1718989702908,-500.0,0.0002218,4]
[330081015,1718989702955,-2333.21,0.0002218,4]
[330081016,1718989702996,-500.0,0.0002218,4]
[330081017,1718989703038,-500.0,0.0002218,4]
[330081018,1718989703080,-500.0,0.0002218,4]
[330081019,1718989703121,-500.0,0.0002218,4]
[330081020,1718989703162,-500.0,0.0002218,4]
[330081021,1718989703204,-1974.58,0.0002218,4]
[330081022,1718989703245,-1560.47,0.0002218,4]
[330081023,1718989703285,-1456.87,0.0002218,4]
[330081024,1718989703324,-500.0,0.0002218,4]
[330081025,1718989703364,-3025.07,0.0002218,4]
[330081026,1718989703402,-500.0,0.0002218,4]
[330081027,1718989703442,-6364.13,0.0002218,4]
[330081028,1718989703481,-642.58285994,0.0002218,4]
[330081029,1718989703526,-766.53,0.0002218,4]
[330081030,1718989703871,-1350.6,0.0002218,4]
[330081031,1718989703912,-500.0,0.0002218,4]
[330081032,1718989703953,-500.0,0.0002218,4]
[330081033,1718989703993,-1844.09,0.0002218,4]
[330081034,1718989704035,-209.58,0.0002218,4]
[330081035,1718989704079,-500.0,0.0002218,4]
[330081036,1718989704120,-1457.49,0.0002218,4]
[330081037,1718989704163,-500.0,0.0002218,4]
[330081038,1718989704203,-1549.35,0.0002218,4]
[330081039,1718989704242,-1276.6,0.0002218,4]
[330081040,1718989704283,-607.75,0.0002218,4]
[330081041,1718989704323,-8891.87,0.0002218,4]
[330081042,1718989704361,-500.0,0.0002218,4]
[330081043,1718989704399,-661.51,0.0002218,4]
[330081044,1718989704439,-500.0,0.0002218,4]
[330081045,1718989704480,-616.1,0.0002218,4]
[330081046,1718989704524,-500.0,0.0002218,4]
[330081047,1718989704565,-500.0,0.0002218,4]
[330081048,1718989704606,-500.0,0.0002218,4]
[330081049,1718989704647,-759.07,0.0002218,4]
[330081050,1718989704687,-500.0,0.0002218,4]
[330081051,1718989704726,-500.0,0.0002218,4]
[330081052,1718989704766,-1007.76,0.0002218,4]
[330081053,1718989704814,-558.75,0.0002218,4]
[330081054,1718989704852,-3884.65,0.0002218,4]
[330081055,1718989704893,-500.0,0.0002218,4]
[330081056,1718989704934,-520.63,0.0002218,4]
[330081057,1718989704975,-504.29866919,0.0002218,4]
[330081058,1718989705017,-500.0,0.0002218,4]
[330081059,1718989705061,-500.0,0.0002218,4]
[330081060,1718989705108,-500.0,0.0002218,4]
[330081061,1718989705151,-750.4,0.0002218,4]
[330081062,1718989705193,-500.0,0.0002218,4]
[330081063,1718989705235,-500.0,0.0002218,4]
[330081064,1718989705277,-2778.62,0.0002218,4]
[330081065,1718989705318,-500.0,0.0002218,4]
[330081066,1718989705359,-500.0,0.0002218,4]
[330081067,1718989705397,-674.53,0.0002218,4]
[330081068,1718989705439,-500.0,0.0002218,4]
[330081069,1718989705480,-1723.58,0.0002218,4]
[330081070,1718989705523,-919.98,0.0002218,4]
[330081071,1718989705563,-500.0,0.0002218,4]
[330081072,1718989705605,-500.0,0.0002218,4]
[330081073,1718989705644,-500.0,0.0002218,4]
[330081074,1718989705684,-596.44,0.0002218,4]
[330081075,1718989705725,-500.0,0.0002218,4]
[330081076,1718989705765,-572.44,0.0002218,4]
[330081077,1718989705806,-966.63,0.0002218,4]
[330081078,1718989705846,-500.0,0.0002218,4]
[330081079,1718989705885,-500.0,0.0002218,4]
[330081080,1718989705923,-500.0,0.0002218,4]
[330081081,1718989705964,-574.64,0.0002218,4]
[330081082,1718989706004,-500.0,0.0002218,4]
[330081083,1718989706043,-1268.76,0.0002218,4]
[330081084,1718989706088,-500.0,0.0002218,4]
[330081085,1718989706132,-222.09825464,0.0002218,4]
[330081086,1718989706173,-500.0,0.0002218,4]
[330081087,1718989706212,-551.74,0.0002218,4]
[330081088,1718989706252,-500.0,0.0002218,4]
[330081089,1718989706292,-500.0,0.0002218,4]
[330081090,1718989706332,-500.0,0.0002218,4]
[330081091,1718989706373,-500.0,0.0002218,4]
[330081092,1718989706413,-735.24,0.0002218,4]
[330081093,1718989706454,-4197.1,0.0002218,4]
[330081094,1718989706494,-853.88,0.0002218,4]
[330081095,1718989706534,-769.31,0.0002218,4]
[330081096,1718989706574,-500.0,0.0002218,4]
[330081097,1718989706618,-503.83305057,0.0002218,4]
[330081098,1718989706659,-500.0,0.0002218,4]
[330081099,1718989706700,-4587.09,0.0002218,4]
[330081100,1718989706738,-584.18,0.0002218,4]
[330081101,1718989706781,-754.91,0.0002218,4]
[330081102,1718989706821,-500.0,0.0002218,4]
[330081103,1718989706859,-510.77063824,0.0002218,4]
[330081104,1718989706895,-500.0,0.0002218,4]
[330081105,1718989706934,-3819.28,0.0002218,4]
[330081106,1718989706974,-500.0,0.0002218,4]
[330081107,1718989707014,-500.0,0.0002218,4]
[330081108,1718989707058,-667.94,0.0002218,4]
[330081109,1718989707167,-920.79,0.0002218,4]
[330081110,1718989707209,-2478.71,0.0002218,4]
[330081111,1718989707250,-843.52,0.0002218,4]
[330081112,1718989707291,-1915.42,0.0002218,4]
[330081113,1718989707331,-1326.48,0.0002218,4]
[330081114,1718989707368,-878.77,0.0002218,4]
[330081115,1718989707410,-500.0,0.0002218,4]
[330081116,1718989707449,-1207.42,0.0002218,4]
[330081117,1718989707489,-500.0,0.0002218,4]
[330081118,1718989707530,-2453.82,0.0002218,4]
[330081119,1718989707569,-1304.29,0.0002218,4]
[330081120,1718989707608,-944.02,0.0002218,4]
[330081121,1718989707647,-500.0,0.0002218,4]
[330081122,1718989707686,-500.0,0.0002218,4]
[330081123,1718989707725,-500.0,0.0002218,4]
[330081124,1718989707765,-729.79,0.0002218,4]
[330081125,1718989707805,-1256.24,0.0002218,4]
[330081126,1718989707843,-500.0,0.0002218,4]
[330081127,1718989707882,-500.0,0.0002218,4]
[330081128,1718989707920,-656.57,0.0002218,4]
[330081129,1718989707960,-1422.04,0.0002218,4]
[330081130,1718989708002,-4413.37,0.0002218,4]
[330081131,1718989708042,-1852.92,0.0002218,4]
[330081132,1718989708085,-625.57,0.0002218,4]
[330081133,1718989708127,-500.0,0.0002218,4]
[330081134,1718989708165,-500.0,0.0002218,4]
[330081135,1718989708203,-6846.75,0.0002218,4]
[330081136,1718989708241,-666.91,0.0002218,4]
[330081137,1718989708280,-2424.04,0.0002218,4]
[330081138,1718989708316,-765.5,0.0002218,4]
[330081139,1718989708360,-1499.6,0.0002218,4]
[330081140,1718989708399,-500.0,0.0002218,4]
[330081141,1718989708439,-13628.78,0.0002218,4]
[330081142,1718989708475,-4987.88,0.0002218,4]
[330081143,1718989708512,-500.0,0.0002218,4]
[330081144,1718989708553,-500.0,0.0002218,4]
[330081145,1718989708592,-500.0,0.0002218,4]
[330081146,1718989708631,-2211.22,0.0002218,4]
[330081147,1718989708672,-915.87,0.0002218,4]
[330081148,1718989708714,-787.23,0.0002218,4]
[330081149,1718989708755,-7061.4,0.0002218,4]
[330081150,1718989708792,-637.63,0.0002218,4]
[330081151,1718989708832,-1221.9,0.0002218,4]
[330081152,1718989708871,-500.0,0.0002218,4]
[330081153,1718989708910,-1018.75,0.0002218,4]
[330081154,1718989708952,-1716.52,0.0002218,4]
[330081155,1718989708996,-500.0,0.0002218,4]
[330081156,1718989709041,-501.59,0.0002218,4]
[330081157,1718989709083,-500.0,0.0002218,4]
[330081158,1718989709126,-500.0,0.0002218,4]
[330081159,1718989709170,-500.0,0.0002218,4]
[330081160,1718989709214,-869.8,0.0002218,4]
[330081161,1718989709256,-500.0,0.0002218,4]
[330081162,1718989709302,-4021.17,0.0002218,4]
[330081163,1718989709345,-500.0,0.0002218,4]
[330081164,1718989709388,-500.0,0.0002218,8]
[330081165,1718989709430,-500.0,0.0002218,4]
[330081166,1718989709471,-500.0,0.0002218,4]